fUST/lending_fUST_20240606
["ID","MTS","AMOUNT","RATE_DAILY","PERIOD"]
[328642759,1717659762347,-416.02713097,0.00029625,40]
[328642760,1717659762372,-500.0,0.00029625,40]
[328642761,1717659762396,-507.7126461,0.00029625,40]
[328642762,1717659762421,-500.0,0.00029625,40]
[328642763,1717659762446,-500.0,0.00029625,40]
[328642764,1717659762470,-268.5794634,0.00029625,40]
[328642765,1717659762494,-500.0,0.00029625,40]
[328642766,1717659762520,-191.67999208,0.00029625,40]
[328642767,1717659762544,-503.51499427,0.00029625,40]
[328642768,1717659762569,-505.34530741,0.00029625,40]
[328642769,1717659762592,-500.0,0.00029625,40]
[328642770,1717659762622,-500.0,0.00029625,40]
[328642771,1717659762647,-500.0,0.00029625,40]
[328642772,1717659762670,-500.0,0.00029625,40]
[328642773,1717659762696,-506.52370285,0.00029625,40]
[328642774,1717659762720,-500.0,0.00029625,40]
[328642775,1717659762745,-500.0,0.00029625,40]
[328642776,1717659762771,-500.0,0.00029625,40]
[328642777,1717659762797,-500.0,0.00029625,40]
[328642778,1717659762822,-500.0,0.00029625,40]
[328642779,1717659762847,-500.0,0.00029625,40]
[328642780,1717659762873,-500.0,0.00029625,40]
[328642781,1717659762900,-500.0,0.00029625,40]
[328642782,1717659762927,-500.0,0.00029625,40]
[328642783,1717659762953,-601.31635161,0.00029625,40]
[328642784,1717659762978,-500.0,0.00029625,40]
[328642785,1717659763012,-501.18484248,0.00029625,40]
[328642786,1717659763043,-500.0,0.00029625,40]
[328642787,1717659763067,-500.0,0.00029625,40]
[328642788,1717659763091,-500.0,0.00029625,40]
[328642789,1717659763118,-500.0,0.00029625,40]
[328642790,1717659763143,-500.0,0.00029625,40]
[328642791,1717659763169,-514.25541578,0.00029625,40]
[328642792,1717659763195,-500.0,0.00029625,40]
[328642793,1717659763221,-503.90512764,0.00029625,40]
[328642794,1717659763246,-503.23222394,0.00029625,40]
[328642795,1717659763272,-298.91027966,0.00029625,40]
[328642796,1717659763298,-500.0,0.00029625,40]
[328642797,1717659763324,-500.0,0.00029625,40]
[328642798,1717659763350,-305.4401086,0.00029625,40]
[328642799,1717659763376,-503.37576975,0.00029625,40]
[328642800,1717659763404,-500.0,0.00029625,40]
[328642801,1717659763431,-500.0,0.00029625,40]
[328642802,1717659763462,-500.0,0.00029625,40]
[328642803,1717659763497,-500.0,0.00029625,40]
[328642804,1717659763527,-500.0,0.00029625,40]
[328642805,1717659763559,-556.50236839,0.00029625,40]
[328642806,1717659763591,-500.0,0.00029625,40]
[328642807,1717659763628,-500.0,0.00029625,40]
[328642808,1717659763660,-500.0,0.00029625,40]
[328642809,1717659763697,-500.0,0.00029625,40]
[328642810,1717659763729,-512.63779369,0.00029625,40]
[328642811,1717659763763,-505.74405561,0.00029625,40]
[328642812,1717659763794,-326.81676017,0.00029625,40]
[328642813,1717659763825,-504.6467787,0.00029625,40]
[328642814,1717659763855,-502.41848772,0.00029625,40]
[328642815,1717659763886,-500.0,0.00029625,40]
[328642816,1717659763915,-500.0,0.00029625,40]
[328642817,1717659763946,-500.0,0.00029625,40]
[328642818,1717659763976,-500.0,0.00029625,40]
[328642819,1717659764009,-500.0,0.00029625,40]
[328642820,1717659764044,-309.73522739,0.00029625,40]
[328642821,1717659764072,-621.38962963,0.00029625,40]
[328642822,1717659764102,-500.0,0.00029625,40]
[328642823,1717659764135,-500.0,0.00029625,40]
[328642824,1717659764164,-500.0,0.00029625,40]
[328642825,1717659764195,-500.0,0.00029625,40]
[328642826,1717659764225,-500.0,0.00029625,40]
[328642827,1717659764251,-420.12156285,0.00029625,40]
[328642828,1717659764279,-500.0,0.00029625,40]
[328642829,1717659764306,-500.0,0.00029625,40]
[328642830,1717659764332,-500.0,0.00029625,40]
[328642831,1717659764359,-500.0,0.00029625,40]
[328642832,1717659764387,-515.63015414,0.00029625,40]
[328642833,1717659764415,-503.39951969,0.00029625,40]
[328642834,1717659764442,-500.0,0.00029625,40]
[328642835,1717659764468,-505.44605417,0.00029625,40]
[328642836,1717659764496,-505.59484111,0.00029625,40]
[328642837,1717659764523,-502.31248653,0.00029625,40]
[328642838,1717659764555,-508.20152789,0.00029625,40]
[328642839,1717659764585,-500.0,0.00029625,40]
[328642840,1717659764612,-500.0,0.00029625,40]
[328642841,1717659764641,-500.0,0.00029625,40]
[328642842,1717659764669,-245.0493206,0.00029625,40]
[328642843,1717659764698,-503.61446528,0.00029625,40]
[328642844,1717659764726,-500.0,0.00029625,40]
[328642845,1717659764756,-500.0,0.00029625,40]
[328642846,1717659764911,-515.72505327,0.00029625,40]
[328642847,1717659764942,-500.0,0.00029625,40]
[328642848,1717659764968,-538.11801047,0.00029625,40]
[328642849,1717659764995,-500.0,0.00029625,40]
[328642850,1717659765020,-500.0,0.00029625,40]
[328642851,1717659765047,-506.1991798,0.00029625,40]
[328642852,1717659765073,-504.24601972,0.00029625,40]
[328642853,1717659765098,-500.0,0.00029625,40]
[328642854,1717659765126,-500.0,0.00029625,40]
[328642855,1717659765150,-500.0,0.00029625,40]
[328642856,1717659765175,-583.80999982,0.00029625,40]
[328642857,1717659765198,-500.0,0.00029625,40]
[328642858,1717659765223,-504.1538851,0.00029625,40]
[328642859,1717659765246,-500.0,0.00029625,40]
[328642860,1717659765270,-500.0,0.00029625,40]
[328642861,1717659765294,-500.0,0.00029625,40]
[328642862,1717659765320,-500.0,0.00029625,40]
[328642863,1717659765344,-500.0,0.00029625,40]
[328642864,1717659765371,-500.0,0.00029625,40]
[328642865,1717659765395,-500.0,0.00029625,40]
[328642866,1717659765419,-574.95616202,0.00029625,40]
[328642867,1717659765443,-500.0,0.00029625,40]
[328642868,1717659765466,-502.74004112,0.00029625,40]
[328642869,1717659765491,-500.0,0.00029625,40]
[328642870,1717659765517,-500.0,0.00029625,40]
[328642871,1717659765542,-467.05134668,0.00029625,40]
[328642872,1717659765569,-500.0,0.00029625,40]
[328642873,1717659765596,-502.78553024,0.00029625,40]
[328642874,1717659765624,-500.0,0.00029625,40]
[328642875,1717659765650,-500.0,0.00029625,40]
[328642876,1717659765676,-500.0,0.00029625,40]
[328642877,1717659765701,-500.0,0.00029625,40]
[328642878,1717659765730,-500.0,0.00029625,40]
[328642879,1717659765757,-266.55562934,0.00029625,40]
[328642880,1717659765783,-500.0,0.00029625,40]
[328642881,1717659765807,-500.0,0.00029625,40]
[328642882,1717659765834,-500.0,0.00029625,40]
[328642883,1717659765859,-500.0,0.00029625,40]
[328642884,1717659765883,-500.0,0.00029625,40]
[328642885,1717659765907,-500.0,0.00029625,40]
[328642886,1717659765931,-500.0,0.00029625,40]
[328642887,1717659765955,-500.0,0.00029625,40]
[328642888,1717659765979,-500.0,0.00029625,40]
[328642889,1717659766003,-500.0,0.00029625,40]
[328642890,1717659766032,-245.24654858,0.00029625,40]
[328642891,1717659766056,-503.44905773,0.00029625,40]
[328642892,1717659766080,-500.0,0.00029625,40]
[328642893,1717659766104,-505.0506127,0.00029625,40]
[328642894,1717659766132,-503.66170926,0.00029625,40]
[328642895,1717659766155,-503.59807792,0.00029625,40]
[328642896,1717659766179,-248.93080157,0.00029625,40]
[328642897,1717659766204,-500.0,0.00029625,40]
[328642898,1717659766228,-500.0,0.00029625,40]
[328642899,1717659766253,-500.0,0.00029625,40]
[328642900,1717659766278,-500.0,0.00029625,40]
[328642901,1717659766303,-507.63784828,0.00029625,40]
[328642902,1717659766328,-506.3007276,0.00029625,40]
[328642903,1717659766353,-500.0,0.00029625,40]
[328642904,1717659766381,-500.0,0.00029625,40]
[328642905,1717659766405,-617.56007782,0.00029625,40]
[328642906,1717659766430,-500.0,0.00029625,40]
[328642907,1717659766455,-500.0,0.00029625,40]
[328642908,1717659766480,-346.50533707,0.00029625,40]
[328642909,1717659766505,-501.9966822,0.00029625,40]
[328642910,1717659766531,-500.0,0.00029625,40]
[328642911,1717659766556,-500.0,0.00029625,40]
[328642912,1717659766581,-500.0,0.00029625,40]
[328642913,1717659766606,-750.97,0.00029625,40]
[328642914,1717659766632,-508.50851242,0.00029625,40]
[328642915,1717659766654,-750.97,0.00029625,40]
[328642916,1717659766679,-750.97,0.00029625,40]
[328642917,1717659766702,-750.97,0.00029625,40]
[328642918,1717659766726,-750.97,0.00029625,40]
[328642919,1717659766749,-750.97,0.00029625,40]
[328642920,1717659766773,-500.0,0.00029625,40]
[328642921,1717659766798,-750.97,0.00029625,40]
[328642922,1717659766821,-500.0,0.00029625,40]
[328642923,1717659766844,-750.97,0.00029625,40]
[328642924,1717659766868,-500.0,0.00029625,40]
[328642925,1717659766892,-750.97,0.00029625,40]
[328642926,1717659766917,-500.0,0.00029625,40]
[328642927,1717659766940,-750.97,0.00029625,40]
[328642928,1717659766963,-500.0,0.00029625,40]
[328642929,1717659766987,-750.97,0.00029625,40]
[328642930,1717659767011,-500.0,0.00029625,40]
[328642931,1717659767039,-500.0,0.00029625,40]
[328642932,1717659767063,-500.0,0.00029625,40]
[328642933,1717659767091,-500.0,0.00029625,40]
[328642934,1717659767116,-750.97,0.00029625,40]
[328642935,1717659767142,-524.24077245,0.00029625,40]
[328642936,1717659767166,-750.97,0.00029625,40]
[328642937,1717659767190,-505.01789441,0.00029625,40]
[328642938,1717659767214,-750.97,0.00029625,40]
[328642939,1717659767239,-750.97,0.00029625,40]
[328642940,1717659767263,-750.97,0.00029625,40]
[328642941,1717659767287,-750.97,0.00029625,40]
[328642942,1717659767312,-750.97,0.00029625,40]
[328642943,1717659767337,-750.97,0.00029625,40]
[328642944,1717659767360,-750.97,0.00029625,40]
[328642945,1717659767384,-750.97,0.00029625,40]
[328642946,1717659767408,-750.97,0.00029625,40]
[328642947,1717659767432,-750.97,0.00029625,40]
[328642948,1717659767553,-751.2015817,0.00029625,40]
[328642949,1717659767578,-502.71483919,0.00029625,40]
[328642950,1717659767601,-503.66287444,0.00029625,40]
[328642951,1717659767627,-500.0,0.00029625,40]
[328642952,1717659767650,-500.0,0.00029625,40]
[328642953,1717659767674,-512.46126811,0.00029625,40]
[328642954,1717659767697,-503.10949762,0.00029625,40]
[328642955,1717659767720,-503.47120415,0.00029625,40]
[328642956,1717659767745,-534.7417435,0.00029625,40]
[328642957,1717659767769,-500.0,0.00029625,40]
[328642958,1717659767792,-502.06098906,0.00029625,40]
[328642959,1717659767816,-504.56338697,0.00029625,40]
[328642960,1717659767839,-502.08517868,0.00029625,40]
[328642961,1717659767863,-500.0,0.00029625,40]
[328642962,1717659767888,-503.09226001,0.00029625,40]
[328642963,1717659767912,-614.03457077,0.00029625,40]
[328642964,1717659767936,-503.21164056,0.00029625,40]
[328642965,1717659767959,-506.11644907,0.00029625,40]
[328642966,1717659767983,-500.0,0.00029625,40]
[328642967,1717659768007,-503.19957882,0.00029625,40]
[328642968,1717659768032,-500.0,0.00029625,40]
[328642969,1717659768060,-500.0,0.00029625,40]
[328642970,1717659768084,-289.17273923,0.00029625,40]
[328642971,1717659768108,-500.0,0.00029625,40]
[328642972,1717659768133,-500.0,0.00029625,40]
[328642973,1717659768157,-500.0,0.00029625,40]
[328642974,1717659768181,-500.0,0.00029625,40]
[328642975,1717659768205,-500.0,0.00029625,40]
[328642976,1717659768229,-500.0,0.00029625,40]
[328642977,1717659768254,-500.0,0.00029625,40]
[328642978,1717659768278,-539.59311579,0.00029625,40]
[328642979,1717659768302,-500.0,0.00029625,40]
[328642980,1717659768326,-497.59061498,0.00029625,40]
[328642981,1717659768350,-500.0,0.00029625,40]
[328642982,1717659768373,-515.46654284,0.00029625,40]
[328642983,1717659768398,-534.62502791,0.00029625,40]
[328642984,1717659768422,-357.55534535,0.00029625,40]
[328642985,1717659768445,-503.26767768,0.00029625,40]
[328642986,1717659768470,-507.56882932,0.00029625,40]
[328642987,1717659768494,-500.0,0.00029625,40]
[328642988,1717659768519,-502.47144088,0.00029625,40]
[328642989,1717659768543,-500.0,0.00029625,40]
[328642990,1717659768567,-511.43676673,0.00029625,40]
[328642991,1717659768590,-500.0,0.00029625,40]
[328642992,1717659768613,-504.34718197,0.00029625,40]
[328642993,1717659768638,-506.14723198,0.00029625,40]
[328642994,1717659768662,-500.0,0.00029625,40]
[328642995,1717659768690,-500.93760517,0.00029625,40]
[328642996,1717659768714,-503.49068588,0.00029625,40]
[328642997,1717659768739,-351.92546362,0.00029625,40]
[328642998,1717659768764,-515.71932315,0.00029625,40]
[328642999,1717659768790,-500.0,0.00029625,40]
[328643000,1717659768814,-544.33325163,0.00029625,40]
[328643001,1717659768842,-551.64241061,0.00029625,40]
[328643002,1717659768865,-500.0,0.00029625,40]
[328643003,1717659768890,-246.6518611,0.00029625,40]
[328643004,1717659768914,-500.0,0.00029625,40]
[328643005,1717659768938,-500.0,0.00029625,40]
[328643006,1717659768962,-500.0,0.00029625,40]
[328643007,1717659768986,-500.0,0.00029625,40]
[328643008,1717659769010,-516.45174486,0.00029625,40]
[328643009,1717659769037,-500.0,0.00029625,40]
[328643010,1717659769061,-500.88160807,0.00029625,40]
[328643011,1717659769087,-168.89756106,0.00029625,40]
[328643012,1717659769114,-500.0,0.00029625,40]
[328643013,1717659769140,-503.8434827,0.00029625,40]
[328643014,1717659769164,-513.59647152,0.00029625,40]
[328643015,1717659769188,-251.00021036,0.00029625,40]
[328643016,1717659769216,-500.0,0.00029625,40]
[328643017,1717659769240,-502.7717005,0.00029625,40]
[328643018,1717659769264,-503.63176129,0.00029625,40]
[328643019,1717659769289,-500.0,0.00029625,40]
[328643020,1717659769313,-500.0,0.00029625,40]
[328643021,1717659769338,-500.0,0.00029625,40]
[328643022,1717659769362,-503.51431149,0.00029625,40]
[328643023,1717659769387,-480.50861842,0.00029625,40]
[328643024,1717659769412,-500.0,0.00029625,40]
[328643025,1717659769438,-192.36380756,0.00029625,40]
[328643026,1717659769464,-502.68014846,0.00029625,40]
[328643027,1717659769488,-500.0,0.00029625,40]
[328643028,1717659769513,-500.0,0.00029625,40]
[328643029,1717659769537,-500.0,0.00029625,40]
[328643030,1717659769561,-500.0,0.00029625,40]
[328643031,1717659769585,-500.0,0.00029625,40]
[328643032,1717659769608,-500.0,0.00029625,40]
[328643033,1717659769632,-500.14859382,0.00029625,40]
[328643034,1717659769656,-508.15831773,0.00029625,40]
[328643035,1717659769679,-507.66667366,0.00029625,40]
[328643036,1717659769703,-502.60906441,0.00029625,40]
[328643037,1717659769729,-511.08157008,0.00029625,40]
[328643038,1717659769752,-500.0,0.00029625,40]
[328643039,1717659769777,-302.85852039,0.00029625,40]
[328643040,1717659769800,-501.28866295,0.00029625,40]
[328643041,1717659769824,-513.21175853,0.00029625,40]
[328643042,1717659769849,-500.0,0.00029625,40]
[328643043,1717659769873,-509.92772759,0.00029625,40]
[328643044,1717659769898,-1409.43,0.00029625,40]
[328643045,1717659769921,-1409.43,0.00029625,40]
[328643046,1717659770043,-1409.43,0.00029625,40]
[328643047,1717659770069,-1409.43,0.00029625,40]
[328643048,1717659770094,-1409.43,0.00029625,40]
[328643049,1717659770119,-1409.43,0.00029625,40]
[328643050,1717659770145,-1409.43,0.00029625,40]
[328643051,1717659770170,-506.12535505,0.00029625,40]
[328643052,1717659770195,-1409.43,0.00029625,40]
[328643053,1717659770220,-1409.43,0.00029625,40]
[328643054,1717659770246,-1409.43,0.00029625,40]
[328643055,1717659770270,-1409.43,0.00029625,40]
[328643056,1717659770294,-500.15654508,0.00029625,40]
[328643057,1717659770318,-1409.43,0.00029625,40]
[328643058,1717659770342,-1409.43,0.00029625,40]
[328643059,1717659770367,-1409.43,0.00029625,40]
[328643060,1717659770393,-1409.43,0.00029625,40]
[328643061,1717659770418,-1409.43,0.00029625,40]
[328643062,1717659770442,-1409.43,0.00029625,40]
[328643063,1717659770465,-1409.43,0.00029625,40]
[328643064,1717659770489,-1409.43,0.00029625,40]
[328643065,1717659770513,-1409.43,0.00029625,40]
[328643066,1717659770536,-1409.43,0.00029625,40]
[328643067,1717659770560,-1409.43,0.00029625,40]
[328643068,1717659770583,-500.0,0.00029625,40]
[328643069,1717659770606,-1409.43,0.00029625,40]
[328643070,1717659770636,-617.39225172,0.00029625,40]
[328643071,1717659770661,-500.0,0.00029625,40]
[328643072,1717659770684,-1409.51785232,0.00029625,40]
[328643073,1717659770709,-500.0,0.00029625,40]
[328643074,1717659770733,-500.0,0.00029625,40]
[328643075,1717659770759,-500.0,0.00029625,40]
[328643076,1717659770784,-500.0,0.00029625,40]
[328643077,1717659770809,-500.0,0.00029625,40]
[328643078,1717659770836,-500.0,0.00029625,40]
[328643079,1717659770860,-500.0,0.00029625,40]
[328643080,1717659770885,-500.0,0.00029625,40]
[328643081,1717659770909,-500.00000005,0.00029625,40]
[328643082,1717659770934,-500.0,0.00029625,40]
[328643084,1717659770959,-500.0,0.00029625,40]
[328643085,1717659770984,-507.6551746,0.00029625,40]
[328643086,1717659771008,-500.0,0.00029625,40]
[328643087,1717659771038,-500.0,0.00029625,40]
[328643088,1717659771062,-500.37314789,0.00029625,40]
[328643089,1717659771086,-500.0,0.00029625,40]
[328643090,1717659771112,-500.0,0.00029625,40]
[328643091,1717659771136,-500.0,0.00029625,40]
[328643092,1717659771159,-509.44974626,0.00029625,40]
[328643093,1717659771183,-500.0,0.00029625,40]
[328643094,1717659771210,-500.0,0.00029625,40]
[328643095,1717659771235,-500.0,0.00029625,40]
[328643096,1717659771261,-513.22795676,0.00029625,40]
[328643097,1717659771284,-502.45950008,0.00029625,40]
[328643098,1717659771309,-500.0,0.00029625,40]
[328643099,1717659771334,-503.51836835,0.00029625,40]
[328643100,1717659771359,-500.0,0.00029625,40]
[328643101,1717659771383,-500.0,0.00029625,40]
[328643102,1717659771407,-396.78253808,0.00029625,40]
[328643103,1717659771430,-504.52251071,0.00029625,40]
[328643104,1717659771454,-500.0,0.00029625,40]
[328643105,1717659771478,-503.57306609,0.00029625,40]
[328643106,1717659771503,-500.0,0.00029625,40]
[328643107,1717659771527,-502.80287816,0.00029625,40]
[328643108,1717659771553,-500.0,0.00029625,40]
[328643109,1717659771579,-586.86,0.00029625,40]
[328643110,1717659771605,-504.57656816,0.00029625,40]
[328643111,1717659771630,-500.0,0.00029625,40]
[328643112,1717659771660,-502.47718104,0.00029625,40]
[328643113,1717659771686,-508.0286184,0.00029625,40]
[328643114,1717659771710,-528.04409053,0.00029625,40]
[328643115,1717659771735,-500.0,0.00029625,40]
[328643116,1717659771760,-503.89743022,0.00029625,40]
[328643117,1717659771786,-500.0,0.00029625,40]
[328643118,1717659771812,-504.03322204,0.00029625,40]
[328643119,1717659771838,-479.74749485,0.00029625,40]
[328643120,1717659771864,-505.03605955,0.00029625,40]
[328643121,1717659771892,-500.0,0.00029625,40]
[328643122,1717659771920,-500.0,0.00029625,40]
[328643123,1717659771945,-503.4723658,0.00029625,40]
[328643124,1717659771971,-500.0,0.00029625,40]
[328643125,1717659771995,-500.0,0.00029625,40]
[328643126,1717659772021,-506.90361651,0.00029625,40]
[328643127,1717659772048,-490.6116712,0.00029625,40]
[328643128,1717659772073,-500.0,0.00029625,40]
[328643129,1717659772097,-500.0,0.00029625,40]
[328643130,1717659772127,-500.0,0.00029625,40]
[328643131,1717659772155,-500.0,0.00029625,40]
[328643132,1717659772182,-500.0,0.00029625,40]
[328643133,1717659772209,-500.0,0.00029625,40]
[328643134,1717659772236,-531.51627043,0.00029625,40]
[328643135,1717659772260,-500.0,0.00029625,40]
[328643136,1717659772284,-506.61420009,0.00029625,40]
[328643137,1717659772309,-512.2610651,0.00029625,40]
[328643138,1717659772335,-500.0,0.00029625,40]
[328643139,1717659772359,-503.91239631,0.00029625,40]
[328643140,1717659772384,-500.0,0.00029625,40]
[328643141,1717659772501,-500.0,0.00029625,40]
[328643142,1717659772528,-505.52060185,0.00029625,40]
[328643143,1717659772552,-545.18548305,0.00029625,40]
[328643144,1717659772577,-500.0,0.00029625,40]
[328643145,1717659772602,-500.0,0.00029625,40]
[328643146,1717659772627,-597.95481095,0.00029625,40]
[328643147,1717659772653,-506.06637366,0.00029625,40]
[328643148,1717659772682,-499.94549631,0.00029625,40]
[328643149,1717659772707,-464.32304756,0.00029625,40]
[328643150,1717659772733,-500.0,0.00029625,40]
[328643151,1717659772759,-506.83621515,0.00029625,40]
[328643152,1717659772785,-500.0,0.00029625,40]
[328643153,1717659772809,-517.33820942,0.00029625,40]
[328643154,1717659772834,-550.14485303,0.00029625,40]
[328643155,1717659772858,-495.8670373,0.00029625,40]
[328643156,1717659772884,-503.75617773,0.00029625,40]
[328643157,1717659772910,-500.0,0.00029625,40]
[328643158,1717659772935,-500.0,0.00029625,40]
[328643159,1717659772960,-522.46222302,0.00029625,40]
[328643160,1717659772984,-501.53919583,0.00029625,40]
[328643161,1717659773010,-505.26700431,0.00029625,40]
[328643162,1717659773036,-502.36465476,0.00029625,40]
[328643163,1717659773064,-502.23550066,0.00029625,40]
[328643164,1717659773090,-500.0,0.00029625,40]
[328643165,1717659773119,-534.40051629,0.00029625,40]
[328643166,1717659773147,-500.0,0.00029625,40]
[328643167,1717659773172,-508.03987004,0.00029625,40]
[328643168,1717659773196,-163.55513866,0.00029625,40]
[328643169,1717659773223,-424.91433902,0.00029625,40]
[328643170,1717659773248,-500.0,0.00029625,40]
[328643171,1717659773272,-500.0,0.00029625,40]
[328643172,1717659773295,-500.0,0.00029625,40]
[328643173,1717659773321,-500.0,0.00029625,40]
[328643174,1717659773347,-500.0,0.00029625,40]
[328643175,1717659773372,-500.0,0.00029625,40]
[328643176,1717659773396,-500.0,0.00029625,40]
[328643177,1717659773421,-500.0,0.00029625,40]
[328643178,1717659773445,-500.0,0.00029625,40]
[328643179,1717659773469,-503.25071767,0.00029625,40]
[328643180,1717659773493,-520.06561191,0.00029625,40]
[328643181,1717659773517,-500.0,0.00029625,40]
[328643182,1717659773541,-511.95320295,0.00029625,40]
[328643183,1717659773566,-504.52295735,0.00029625,40]
[328643184,1717659773590,-523.11280197,0.00029625,40]
[328643185,1717659773613,-504.49045562,0.00029625,40]
[328643186,1717659773639,-511.20469276,0.00029625,40]
[328643187,1717659773661,-507.59174009,0.00029625,40]
[328643188,1717659773686,-500.0,0.00029625,40]
[328643189,1717659773711,-506.44620614,0.00029625,40]
[328643190,1717659773737,-506.32779015,0.00029625,40]
[328643191,1717659773766,-553.99,0.00029625,40]
[328643192,1717659773794,-553.99,0.00029625,40]
[328643193,1717659773821,-553.99,0.00029625,40]
[328643194,1717659773847,-553.99,0.00029625,40]
[328643195,1717659773874,-553.99,0.00029625,40]
[328643196,1717659773902,-553.99,0.00029625,40]
[328643197,1717659773930,-553.99,0.00029625,40]
[328643198,1717659773959,-553.99,0.00029625,40]
[328643199,1717659773986,-553.99,0.00029625,40]
[328643200,1717659774015,-553.99,0.00029625,40]
[328643201,1717659774042,-553.99,0.00029625,40]
[328643202,1717659774069,-553.99,0.00029625,40]
[328643203,1717659774095,-553.99,0.00029625,40]
[328643204,1717659774123,-553.99,0.00029625,40]
[328643205,1717659774150,-553.99,0.00029625,40]
[328643206,1717659774179,-553.99,0.00029625,40]
[328643207,1717659774207,-553.99,0.00029625,40]
[328643208,1717659774235,-553.99,0.00029625,40]
[328643209,1717659774262,-553.99,0.00029625,40]
[328643210,1717659774291,-553.99,0.00029625,40]
[328643211,1717659774319,-553.99,0.00029625,40]
[328643212,1717659774344,-505.70733763,0.00029625,40]
[328643213,1717659774370,-553.99,0.00029625,40]
[328643214,1717659774397,-553.99,0.00029625,40]
[328643215,1717659774424,-554.14481573,0.00029625,40]
[328643216,1717659774449,-506.71668084,0.00029625,40]
[328643217,1717659774476,-500.0,0.00029625,40]
[328643218,1717659774500,-512.05642221,0.00029625,40]
[328643219,1717659774527,-508.79495179,0.00029625,40]
[328643220,1717659774551,-500.0,0.00029625,40]
[328643221,1717659774579,-500.0,0.00029625,40]
[328643222,1717659774604,-500.0,0.00029625,40]
[328643223,1717659774629,-500.0,0.00029625,40]
[328643224,1717659774655,-500.0,0.00029625,40]
[328643225,1717659774681,-500.0,0.00029625,40]
[328643226,1717659774706,-500.0,0.00029625,40]
[328643227,1717659774731,-500.0,0.00029625,40]
[328643228,1717659774759,-500.0,0.00029625,40]
[328643229,1717659774786,-500.0,0.00029625,40]
[328643230,1717659774816,-500.0,0.00029625,40]
[328643231,1717659774842,-500.0,0.00029625,40]
[328643232,1717659774867,-500.0,0.00029625,40]
[328643233,1717659774986,-500.0,0.00029625,40]
[328643234,1717659775016,-590.52467519,0.00029625,40]
[328643235,1717659775045,-500.0,0.00029625,40]
[328643236,1717659775072,-544.37852124,0.00029625,40]
[328643237,1717659775100,-500.0,0.00029625,40]
[328643238,1717659775129,-500.0,0.00029625,40]
[328643239,1717659775155,-500.0,0.00029625,40]
[328643240,1717659775181,-500.0,0.00029625,40]
[328643241,1717659775208,-500.0,0.00029625,40]
[328643242,1717659775232,-500.0,0.00029625,40]
[328643243,1717659775258,-500.0,0.00029625,40]
[328643244,1717659775286,-219.92070155,0.00029625,40]
[328643245,1717659775311,-501.94063892,0.00029625,40]
[328643246,1717659775338,-500.0,0.00029625,40]
[328643247,1717659775363,-503.38300732,0.00029625,40]
[328643248,1717659775390,-527.1606399,0.00029625,40]
[328643249,1717659775414,-500.0,0.00029625,40]
[328643250,1717659775439,-500.0,0.00029625,40]
[328643251,1717659775463,-502.79821721,0.00029625,40]
[328643252,1717659775488,-502.60417516,0.00029625,40]
[328643253,1717659775513,-1099.46699479,0.00029625,40]
[328643254,1717659775539,-500.0,0.00029625,40]
[328643255,1717659775565,-201.3527487,0.00029625,40]
[328643256,1717659775589,-500.0,0.00029625,40]
[328643257,1717659775615,-500.0,0.00029625,40]
[328643258,1717659775640,-512.14245717,0.00029625,40]
[328643259,1717659775666,-269.84731065,0.00029625,40]